bitfinex-derivatives/quotes_ETHF0:USTF0_20250702
["timestamp","ask_amount","ask_price","bid_price","bid_amount"]
[1751419718082,0.83156,2404.8,2404.4,8.05009801]
[1751419718387,1.803,2405.1,2404.4,8.05009801]
[1751419718388,1.1242345,2404.7,2404.4,7.21842801]
[1751419718588,0.2926545,2404.7,2404.4,7.21842801]
[1751419719190,1.1242445,2404.7,2404.4,7.21842801]
[1751419719384,0.2926545,2404.7,2404.4,7.21842801]
[1751419719580,0.83165,2404.5,2404.4,7.21842801]
[1751419719984,0.83165,2404.5,2404.4,5.36852801]
[1751419720182,0.2926545,2404.7,2404.2,42.5676]
[1751419720183,0.83172,2404.3,2404.2,42.5676]
[1751419720382,2.3716745,2404.7,2404.2,42.5676]
[1751419720383,0.2926545,2404.7,2404.2,40.8]
[1751419720577,0.2926545,2404.7,2404.3,5.35860661]
[1751419720783,0.2926545,2404.7,2404.3,12.58191846]
[1751419721084,0.83161,2404.6,2404.3,13.41361846]
[1751419721480,0.2926545,2404.7,2404.3,12.58191846]
[1751419721786,0.2926545,2404.7,2404.3,7.22331185]
[1751419721984,0.83163,2404.6,2404.3,8.05502185]
[1751419722289,0.83163,2404.6,2404.4,5.35860661]
[1751419722484,0.83163,2404.6,2404.4,7.17600661]
[1751419722784,0.2926545,2404.7,2404.4,7.17600661]
[1751419723087,0.2926545,2404.7,2404.2,40.8]
[1751419723281,0.83175,2404.2,2404.0,7.95800661]
[1751419723584,0.2926545,2404.7,2404.3,5.33430452]
[1751419723787,0.83168,2404.4,2404.3,5.35860661]
[1751419723982,0.83167,2404.5,2404.3,5.35860661]
[1751419724286,0.83167,2404.5,2404.4,40.8]
[1751419724487,0.2926545,2404.7,2404.4,0.83168]
[1751419724688,0.83167,2404.5,2404.4,1.8327]
[1751419725488,0.83168,2404.4,2404.3,46.15860661]
[1751419725991,0.83167,2404.5,2404.3,46.99031661]
[1751419726380,0.83164,2404.6,2404.3,46.99031661]
[1751419726583,0.83165,2404.5,2404.4,3.29215454]
[1751419726984,0.83163,2404.6,2404.4,3.29215454]
[1751419727181,0.83163,2404.6,2404.4,5.95653454]
[1751419727387,1.1242545,2404.7,2404.5,3.29215454]
[1751419727693,0.83161,2404.6,2404.5,3.29215454]
[1751419727890,1.1242445,2404.7,2404.5,7.96401437]
[1751419728086,1.1242445,2404.7,2404.5,8.79565437]
[1751419728694,1.1242445,2404.7,2404.5,5.50349983]
[1751419728891,0.2926545,2404.7,2404.5,4.67185983]
[1751419729094,1.1242445,2404.7,2404.5,7.24447983]
[1751419729300,0.2926545,2404.7,2404.6,0.83161]
[1751419729799,1.1242345,2404.7,2404.5,10.53664437]
[1751419730001,0.2926545,2404.7,2404.6,0.83161]
[1751419730299,1.1242345,2404.7,2404.6,2.57261]
[1751419730490,1.1242345,2404.7,2404.6,1.741]
[1751419731203,0.83161,2404.6,2404.5,4.67185983]
[1751419731695,0.83161,2404.6,2404.5,7.96824465]
[1751419732195,1.1242545,2404.7,2404.5,7.96824465]
[1751419732395,1.1242545,2404.7,2404.6,3.29638482]
[1751419732897,0.83165,2404.5,2404.4,3.29638482]
[1751419733297,0.2926545,2404.7,2404.4,3.29638482]
[1751419733493,0.2926545,2404.7,2404.6,7.96934525]
[1751419733800,0.2926545,2404.7,2404.6,8.80095525]
[1751419734403,1.1242345,2404.7,2404.6,7.96934525]
[1751419734796,1.1242345,2404.7,2404.6,4.67185983]
[1751419734996,1.1242345,2404.7,2404.6,7.96934525]
[1751419735196,0.2926545,2404.7,2404.6,7.96934525]
[1751419735499,0.2926545,2404.7,2404.6,8.80095525]
[1751419735902,1.1242345,2404.7,2404.6,7.96934525]
[1751419736097,1.1242345,2404.7,2404.6,3.29748542]
[1751419736401,0.83161,2404.6,2404.5,4.99138542]
[1751419736597,0.83161,2404.6,2404.5,1.6939]
[1751419737090,0.2926545,2404.7,2404.4,5.91572624]
[1751419737091,0.83165,2404.5,2404.4,5.91572624]
[1751419737295,0.2926545,2404.7,2404.4,4.13612624]
[1751419737496,1.1242345,2404.7,2404.6,3.29995905]
[1751419737692,2.8461345,2404.7,2404.6,3.29995905]
[1751419738292,7.8461345,2404.7,2404.6,3.29995905]
[1751419739198,0.83165,2404.5,2404.4,3.29995905]
[1751419739397,7.0145545,2404.7,2404.0,9.06906983]
[1751419739398,2.07909,2404.6,2404.3,4.13612624]
[1751419739602,0.83168,2404.4,2404.3,4.13612624]
[1751419740699,0.83172,2404.3,2404.2,4.13612624]
[1751419741095,0.83175,2404.2,2404.1,4.13612624]
[1751419741503,2.07909,2404.6,2404.1,2.68788]
[1751419741699,0.83175,2404.2,2404.1,1.8561]
[1751419741894,0.83175,2404.2,2404.1,5.9863027]
[1751419742102,0.83175,2404.2,2404.1,5.98628952]
[1751419742300,0.83175,2404.2,2404.1,2.68788]
[1751419742599,0.33289661,2404.2,2404.1,1.8561]
[1751419743603,0.83178,2404.1,2404.0,52.99909327]
[1751419744306,2.07921,2404.4,2404.0,55.56391327]
[1751419744507,0.83168,2404.4,2404.3,4.13788727]
[1751419745413,0.83175,2404.2,2404.1,5.79304218]
[1751419745603,0.83168,2404.4,2404.3,4.67185983]
[1751419746002,0.2926545,2404.7,2404.3,4.67185983]
[1751419746205,1.1242345,2404.7,2404.6,4.67185983]
[1751419746409,1.1242345,2404.7,2404.6,4.14182659]
[1751419747110,1.1242345,2404.7,2404.5,4.67185983]
[1751419747111,0.83161,2404.6,2404.5,4.67185983]
[1751419747309,0.2926545,2404.7,2404.5,6.49515983]
[1751419747504,1.1242345,2404.7,2404.6,5.80948318]
[1751419747705,0.2926545,2404.7,2404.6,6.64109318]
[1751419747917,0.2926545,2404.7,2404.6,2.65491]
[1751419748208,1.1242345,2404.7,2404.6,1.8233]
[1751419750808,0.2926545,2404.7,2404.6,2.65491]
[1751419751114,0.2926545,2404.7,2404.6,4.37421]
[1751419751908,0.2926545,2404.7,2404.6,9.83520361]
[1751419752507,1.1242345,2404.7,2404.6,9.00359361]
[1751419752703,0.2926545,2404.7,2404.6,9.83520361]
[1751419752913,0.2926545,2404.7,2404.6,11.65850361]
[1751419753309,1.8745,2405.5,2405.0,0.83146]
[1751419753310,1.58184552,2405.5,2405.0,0.83146]
[1751419753510,1.58184552,2405.5,2405.2,8.82019814]
[1751419753511,0.83137,2405.3,2405.2,8.82019814]
[1751419753712,1.7077,2405.6,2405.2,4.67185983]
[1751419754018,0.83127,2405.6,2405.5,4.67185983]
[1751419754708,0.83127,2405.6,2405.3,4.14805217]
[1751419754709,0.83134,2405.4,2405.3,4.14805217]
[1751419754913,0.83134,2405.4,2405.3,3.30684217]
[1751419755106,0.83137,2405.3,2405.2,5.80767364]
[1751419755311,0.8314,2405.2,2405.1,5.80767364]
[1751419755715,5.8314,2405.2,2405.1,5.80767364]
[1751419755911,0.8314,2405.2,2405.1,5.80767364]
[1751419756118,0.83144,2405.1,2405.0,5.80767364]
[1751419756413,0.83144,2405.1,2405.0,10.47953347]
[1751419757210,0.83144,2405.1,2405.0,4.67185983]
[1751419758111,0.83142,2405.2,2405.0,4.67185983]
[1751419758317,2.07817,2405.6,2405.1,0.83142]
[1751419758514,3.93167,2405.6,2405.2,5.79959611]
[1751419758823,0.83137,2405.3,2405.2,5.79959611]
[1751419760618,0.8314,2405.2,2405.1,10.47145594]
[1751419761117,0.8314,2405.2,2405.1,5.79959611]
[1751419761318,0.83144,2405.1,2405.0,5.79959611]
[1751419761819,2.0785,2405.3,2405.0,5.79721325]
[1751419762007,0.83144,2405.1,2405.0,5.79721325]
[1751419762719,0.83144,2405.1,2404.7,5.79721325]
[1751419762720,0.83154,2404.8,2404.7,5.79721325]
[1751419763027,0.83161,2404.6,2404.5,14.05418816]
[1751419763214,0.83161,2404.6,2404.5,5.79721325]
[1751419763808,0.83165,2404.5,2404.4,5.79721325]
[1751419764013,0.83165,2404.5,2404.4,10.46907308]
[1751419764311,1.7337,2405.0,2404.4,4.67185983]
[1751419764509,0.83151,2404.9,2404.8,4.14135415]
[1751419764712,0.83154,2404.8,2404.7,4.14135415]
[1751419765419,0.83161,2404.6,2404.5,5.79789581]
[1751419765620,0.83161,2404.6,2404.5,7.60449581]
[1751419766016,0.83161,2404.6,2404.5,5.79789581]
[1751419766521,0.83165,2404.5,2404.4,10.46975564]
[1751419766713,2.07892,2404.8,2404.4,10.46975564]
[1751419766914,0.83165,2404.5,2404.4,4.67185983]
[1751419767122,0.83172,2404.3,2404.2,6.47845983]
[1751419767316,2.07909,2404.6,2404.2,6.47845983]
[1751419767510,2.07909,2404.6,2404.3,8.28243508]
[1751419767813,0.83168,2404.4,2404.3,8.28243508]
[1751419769020,0.83168,2404.4,2404.3,14.08059678]
[1751419769320,0.83168,2404.4,2404.3,5.7981617]
[1751419772614,0.83172,2404.3,2404.2,5.7981617]
[1751419772815,2.68772,2404.3,2404.2,5.7981617]
[1751419773016,0.83175,2404.2,2404.1,5.7981617]
[1751419773224,2.68775,2404.2,2404.1,5.7981617]
[1751419773423,0.83179,2404.1,2404.0,5.7981617]
[1751419773824,0.83182,2404.0,2403.9,4.67185983]
[1751419774021,0.83182,2404.0,2403.9,6.45395983]
[1751419777327,0.83182,2404.0,2403.9,1.7821]
[1751419777628,0.83182,2404.0,2403.9,4.67185983]
[1751419778424,0.83182,2404.0,2403.9,10.46450067]
[1751419779627,0.83182,2404.0,2403.9,6.45035983]
[1751419780126,0.83182,2404.0,2403.9,7.28220983]
[1751419780325,0.83182,2404.0,2403.9,12.24069317]
[1751419780522,0.83182,2404.0,2403.9,13.07254317]
[1751419780729,1.8618,2404.4,2403.9,6.45035983]
[1751419780927,0.83168,2404.4,2404.3,4.13579219]
[1751419781127,0.83172,2404.3,2404.2,4.67185983]
[1751419782028,0.83172,2404.3,2404.2,8.80746627]
[1751419783630,0.83172,2404.3,2404.2,4.67185983]
[1751419783825,0.83172,2404.3,2404.2,6.56965541]
[1751419784930,0.83172,2404.3,2404.2,8.29525541]
[1751419785230,0.83171,2404.4,2404.2,9.12699541]
[1751419785432,0.83171,2404.4,2404.3,1.833]
[1751419785622,0.83171,2404.4,2404.3,5.09876897]
[1751419785824,0.83171,2404.4,2404.3,6.90016897]
[1751419786032,0.83171,2404.4,2404.3,14.58867804]
[1751419786627,0.83167,2404.5,2404.3,14.58867804]
[1751419786828,0.83164,2404.6,2404.4,3.26572897]
[1751419787027,0.83159,2404.7,2404.5,4.26704897]
[1751419787227,0.83159,2404.7,2404.6,2.43404897]
[1751419787530,0.83159,2404.7,2404.6,4.26704897]
[1751419787928,0.83153,2404.9,2404.7,0.83156]
[1751419788235,0.8315,2405.0,2404.8,4.96775884]
[1751419788431,0.83151,2404.9,2404.8,4.13621884]
[1751419788623,0.83151,2404.9,2404.8,6.57026781]
[1751419788829,0.83151,2404.9,2404.8,8.33886781]
[1751419790334,0.83151,2404.9,2404.8,4.20264897]
[1751419791229,0.83151,2404.9,2404.8,5.03418897]
[1751419791634,0.83151,2404.9,2404.8,4.20264897]
[1751419793732,0.83151,2404.9,2404.8,2.43404897]
[1751419794637,0.83151,2404.9,2404.8,9.05569804]
[1751419795539,0.8315,2405.0,2404.9,0.83151]
[1751419795734,0.8315,2405.0,2404.9,3.26555897]
[1751419796041,0.8315,2405.0,2404.9,2.43404897]
[1751419796230,0.8315,2405.0,2404.9,8.22415804]
[1751419796434,0.8315,2405.0,2404.9,9.05566804]
[1751419796737,0.83146,2405.1,2405.0,0.83146]
[1751419796939,0.83146,2405.1,2405.0,5.06300897]
[1751419797538,0.83146,2405.1,2405.0,4.23154897]
[1751419797940,0.83146,2405.1,2405.0,5.06301897]
[1751419798438,0.83142,2405.2,2405.0,6.10404897]
[1751419798633,61.93329,2405.5,2405.0,6.93549897]
[1751419798940,0.83144,2405.1,2405.0,4.50145]
[1751419799335,0.83143,2405.2,2405.0,3.67]
[1751419799537,0.83144,2405.1,2405.0,4.50146]
[1751419799942,0.83144,2405.1,2405.0,6.93550897]
[1751419800442,0.83144,2405.1,2405.0,4.30654897]
[1751419800742,0.83144,2405.1,2405.0,8.22415804]
[1751419801138,0.83144,2405.1,2405.0,2.43404897]
[1751419801540,0.83144,2405.1,2405.0,8.22415804]
[1751419802846,0.83144,2405.1,2405.0,2.43404897]
[1751419803443,0.83144,2405.1,2405.0,3.26551897]
[1751419804046,0.83143,2405.2,2405.1,0.83144]
[1751419804240,0.83141,2405.2,2405.1,6.57084112]
[1751419804442,0.83141,2405.2,2405.1,2.43404897]
[1751419804642,0.83144,2405.1,2405.0,2.66485]
[1751419804847,0.83144,2405.1,2405.0,5.09889897]
[1751419805247,0.83144,2405.1,2405.0,4.26744897]
[1751419805448,0.83144,2405.1,2405.0,2.43404897]
[1751419805652,0.83147,2405.0,2404.9,5.79010907]
[1751419806042,5.83147,2405.0,2404.9,4.13694731]
[1751419806246,0.83151,2404.9,2404.8,4.13694731]
[1751419806648,0.83151,2404.9,2404.6,5.79010907]
[1751419806649,0.83154,2404.8,2404.7,4.13694731]
[1751419806848,0.83158,2404.7,2404.6,4.13694731]
[1751419807154,0.83161,2404.6,2404.5,4.13694731]
[1751419807350,0.83151,2404.9,2404.8,0.83154]
[1751419807540,0.83151,2404.9,2404.5,2.43404897]
[1751419807541,0.83156,2404.8,2404.7,2.43404897]
[1751419807851,0.83161,2404.6,2404.5,5.79010907]
[1751419808050,0.83161,2404.6,2404.5,12.36268849]
[1751419808348,2.07843,2405.3,2404.7,0.83156]
[1751419808544,0.83147,2405.0,2404.9,6.57292883]
[1751419810653,0.83147,2405.0,2404.9,2.43404897]
[1751419811049,0.83147,2405.0,2404.9,3.26555897]
[1751419811250,0.83147,2405.0,2404.9,8.22415804]
[1751419811752,0.83147,2405.0,2404.8,5.79010907]
[1751419811753,0.83151,2404.9,2404.8,5.79010907]
[1751419811955,4.43381,2404.9,2404.8,9.93090283]
[1751419812151,0.83154,2404.8,2404.7,4.14079376]
[1751419812648,0.83154,2404.8,2404.7,6.57484273]
[1751419813256,0.83154,2404.8,2404.7,2.43404897]
[1751419813757,0.83161,2404.6,2404.5,5.79010907]
[1751419814254,0.83165,2404.5,2404.4,5.79010907]
[1751419814952,0.83168,2404.4,2404.3,9.05587804]
[1751419815151,0.83168,2404.4,2404.3,8.22415804]
[1751419815350,0.83168,2404.4,2404.3,2.43404897]
[1751419816256,0.83168,2404.4,2404.3,3.26576897]
[1751419816557,0.83165,2404.5,2404.4,0.83167]
[1751419816757,0.83165,2404.5,2404.4,10.01411847]
[1751419816958,0.83165,2404.5,2404.4,8.23691847]
[1751419817155,0.83165,2404.5,2404.4,2.43404897]
[1751419817358,0.83165,2404.5,2404.4,8.23714305]
[1751419818154,0.83165,2404.5,2404.4,9.06882305]
[1751419818561,0.83165,2404.5,2404.4,8.23714305]
[1751419819467,0.83165,2404.5,2404.4,9.06882305]
[1751419819669,0.83164,2404.6,2404.4,8.23714305]
[1751419819868,1.8824,2404.8,2404.5,2.43404897]
[1751419820070,2.71394,2404.8,2404.7,4.14397323]
[1751419821063,4.54994,2404.8,2404.7,4.14397323]
[1751419821665,0.83158,2404.7,2404.6,4.14397323]
[1751419823965,2.65968,2404.7,2404.6,4.14397323]
[1751419824275,0.83158,2404.7,2404.6,4.14397323]
[1751419824465,0.83158,2404.7,2404.6,4.97558323]
[1751419824667,0.83151,2404.9,2404.8,0.83152]
[1751419824867,0.8315,2405.0,2404.9,0.83151]
[1751419825067,3.8923,2405.5,2405.0,0.83146]
[1751419825270,0.83144,2405.1,2405.0,0.83146]
[1751419825474,0.83144,2405.1,2405.0,3.26550897]
[1751419825661,0.83144,2405.1,2405.0,2.43404897]
[1751419826968,0.83144,2405.1,2405.0,4.32514897]
[1751419827172,0.83146,2405.1,2405.0,2.43404897]
[1751419827675,0.83146,2405.1,2405.0,4.32514897]
[1751419828372,0.83147,2405.0,2404.9,4.14397323]
[1751419829076,0.83151,2404.9,2404.8,6.5780222]
[1751419829274,6.35095897,2405.3,2404.8,2.43404897]
[1751419829768,0.83144,2405.1,2405.0,4.14378524]
[1751419830368,0.83151,2404.9,2404.8,8.23714305]
[1751419831970,8.26555897,2404.9,2404.8,5.51043959]
[1751419832477,5.83151,2404.9,2404.8,5.51043959]
[1751419832879,0.83151,2404.9,2404.8,5.51043959]
[1751419833075,0.83161,2404.6,2404.5,2.43404897]
[1751419833269,2.07873,2405.0,2404.4,0.83167]
[1751419833476,0.83161,2404.6,2404.5,2.43404897]
[1751419834474,0.83168,2404.4,2404.3,14.27158405]
[1751419834774,1.834,2404.9,2404.3,14.27158405]
[1751419834984,0.83161,2404.6,2404.5,2.43404897]
[1751419835173,0.83161,2404.6,2404.5,3.26567897]
[1751419835474,13.345,2405.0,2404.5,4.31044897]
[1751419835680,0.83156,2404.8,2404.7,0.83158]
[1751419836781,0.83156,2404.8,2404.7,3.26562897]
[1751419837282,0.83156,2404.8,2404.7,2.43404897]
[1751419838584,0.83161,2404.7,2404.6,2.43404897]
[1751419838882,0.83161,2404.7,2404.6,3.26565897]
[1751419839175,61.7271,2405.3,2404.8,0.83152]
[1751419839380,0.8315,2405.0,2404.9,2.43404897]
[1751419839581,0.83146,2405.1,2404.9,13.75441224]
[1751419839878,0.83138,2405.3,2405.1,0.83141]
[1751419840178,0.83138,2405.3,2405.2,2.43404897]
[1751419840580,0.83138,2405.3,2405.2,7.41394143]
[1751419840771,0.83135,2405.4,2405.2,3.26543897]
[1751419840977,0.83137,2405.3,2405.2,4.14848246]
[1751419841171,0.83137,2405.3,2405.2,47.38253143]
[1751419841777,0.83137,2405.3,2405.2,2.43404897]
[1751419841977,0.83134,2405.4,2405.2,3.26542897]
[1751419842183,0.83134,2405.4,2405.3,4.14774471]
[1751419842377,13.345,2405.8,2405.3,0.83137]
[1751419842572,0.8313,2405.5,2405.4,8.35333404]
[1751419843178,0.8313,2405.5,2405.4,1.7727]
[1751419843680,0.83134,2405.4,2405.3,4.14658507]
[1751419843877,3.26538897,2405.4,2405.3,4.14658507]
[1751419844081,8.26538897,2405.4,2405.3,3.02179507]
[1751419844282,0.83144,2405.1,2405.0,5.80725907]
[1751419844482,0.83154,2404.8,2404.7,9.41925907]
[1751419844891,0.83168,2404.4,2404.3,8.28243508]
[1751419845285,2.43404897,2404.6,2404.3,8.28243508]
[1751419845583,0.83168,2404.4,2404.3,8.28243508]
[1751419846086,0.83172,2404.3,2404.2,2.43404897]
[1751419846379,4.51276897,2405.0,2404.2,4.25194897]
[1751419846585,0.83172,2404.3,2404.2,1.8179]
[1751419846784,0.83172,2404.3,2404.2,12.53438405]
[1751419846980,0.83169,2404.4,2404.2,13.36613405]
[1751419847583,0.83172,2404.3,2404.2,4.25194897]
[1751419847885,0.83172,2404.3,2404.2,10.11142182]
[1751419848475,0.83172,2404.3,2404.2,1.8179]
[1751419853086,0.83172,2404.3,2404.2,3.5648]
[1751419854083,0.83172,2404.3,2404.2,1.8179]
[1751419854493,0.83172,2404.3,2404.2,7.62149467]
[1751419854793,0.8317,2404.4,2404.2,10.88727364]
[1751419854994,0.8317,2404.4,2404.3,1.7469]
[1751419855495,0.8317,2404.4,2404.3,7.55049467]
[1751419858997,0.8317,2404.4,2404.3,8.38221467]
[1751419860498,0.8317,2404.4,2404.3,7.55049467]
[1751419861193,2.0788,2404.9,2404.3,7.55049467]
[1751419861397,0.83158,2404.7,2404.6,6.57827166]
[1751419861704,0.83158,2404.7,2404.6,8.23764364]
[1751419862200,0.83158,2404.7,2404.6,2.43404897]
[1751419862400,0.83158,2404.7,2404.6,9.95622002]
[1751419862897,0.83158,2404.7,2404.6,9.9560075]
[1751419863690,0.83158,2404.7,2404.6,4.15464897]
[1751419863891,0.83158,2404.7,2404.6,9.95594951]
[1751419864502,59.852,2405.2,2404.7,0.83155]
[1751419864703,0.83144,2405.1,2405.0,4.14328073]
[1751419865001,20.71837,2405.3,2405.0,6.5773297]
[1751419865002,15.81019,2405.3,2405.0,6.5773297]
[1751419865202,14.07039,2405.3,2405.2,6.5773297]
[1751419865402,0.83139,2405.3,2405.2,7.4087397]
[1751419865602,0.83147,2405.0,2404.9,4.78867302]
[1751419865902,0.83177,2404.2,2404.0,8.29352182]
[1751419866106,0.83179,2404.1,2404.0,8.29352182]
[1751419866304,4.51330897,2404.4,2404.0,8.29352182]
[1751419866508,0.83182,2404.0,2403.9,12.02552182]
[1751419867399,0.83196,2403.6,2403.5,19.09985137]
[1751419867600,0.83196,2403.6,2403.5,22.75175137]
[1751419868197,36.85658269,2404.3,2403.5,3.6519]
[1751419868401,0.83193,2403.7,2403.5,4.48388]
[1751419868906,0.83193,2403.7,2403.6,1.7308]
[1751419869206,0.83193,2403.7,2403.5,4.48388]
[1751419869407,0.83193,2403.7,2403.6,1.7308]
[1751419870201,2.07955,2404.1,2403.5,3.6519]
[1751419870202,0.83196,2403.6,2403.5,3.6519]
[1751419870403,0.83196,2403.6,2403.5,5.5037]
[1751419870606,1.7425,2404.2,2403.5,10.18033269]
[1751419870802,0.83177,2404.2,2403.8,4.67663269]
[1751419870996,2.07891,2404.8,2404.1,5.50840269]
[1751419870997,0.83172,2404.3,2404.1,5.50840269]
[1751419871202,0.83171,2404.4,2404.2,4.53665]
[1751419871405,0.83171,2404.4,2404.3,1.8531]
[1751419871603,0.83168,2404.4,2404.3,1.8531]
[1751419872008,0.83172,2404.3,2404.2,3.648]
[1751419872612,0.83172,2404.3,2404.2,46.3011]
[1751419872910,1.8459,2404.9,2404.2,46.3011]
[1751419873110,0.83167,2404.5,2404.4,4.67663269]
[1751419873706,2.07836,2405.4,2404.4,9.67663269]
[1751419873910,0.83154,2404.8,2404.7,4.67663269]
[1751419875510,0.83154,2404.8,2404.7,8.21003269]
[1751419875814,0.83154,2404.8,2404.7,10.00413269]
[1751419876713,0.83154,2404.8,2404.7,3.5559]
[1751419876916,0.83154,2404.8,2404.7,1.7941]
[1751419878915,0.83154,2404.8,2404.7,1.7757]
[1751419879117,0.83154,2404.8,2404.7,3.6163]
[1751419879318,0.83154,2404.8,2404.7,4.44788]
[1751419879719,0.83153,2404.9,2404.7,4.44788]
[1751419879910,0.83154,2404.8,2404.7,3.6163]
[1751419880415,0.83153,2404.9,2404.7,4.44788]
[1751419880919,0.83153,2404.9,2404.8,0.83154]
[1751419881108,0.83153,2404.9,2404.7,4.44786]
[1751419881514,0.83154,2404.8,2404.7,2.60726]
[1751419881713,0.83153,2404.9,2404.7,4.46546]
[1751419882323,1.8459,2405.3,2404.7,3.6339]
[1751419882625,0.83141,2405.2,2405.0,5.50808269]
[1751419882824,0.83141,2405.2,2404.8,7.26576025]
[1751419882825,2.07851,2405.3,2404.8,7.26576025]
[1751419883124,0.83151,2404.9,2404.8,1.7671]
[1751419883625,1.8038,2405.1,2404.6,6.62979893]
[1751419883921,1.8038,2405.1,2404.7,0.83158]
[1751419883922,0.83156,2404.8,2404.7,0.83158]
[1751419884118,0.83156,2404.8,2404.6,8.35748893]
[1751419884320,2.07843,2405.4,2404.6,1.7277]
[1751419884520,1.8802,2405.3,2404.8,5.79049942]
[1751419884720,0.83151,2404.9,2404.8,5.79049942]
[1751419885121,0.83151,2404.9,2404.8,6.62203942]
[1751419885619,3.95867,2405.3,2404.8,0.83154]
[1751419885819,0.83152,2404.9,2404.7,8.42104942]
[1751419887026,0.83152,2404.9,2404.8,0.83154]
[1751419887215,0.83152,2404.9,2404.7,5.79049942]
[1751419887422,0.83154,2404.8,2404.7,5.79049942]
[1751419889022,0.83161,2404.6,2404.5,48.36209942]
[1751419889729,0.83161,2404.6,2404.5,7.56209942]
[1751419890229,0.83161,2404.6,2404.5,1.7716]
[1751419890729,0.83161,2404.6,2404.5,7.5533963]
[1751419891129,0.83165,2404.5,2404.4,7.5997963]
[1751419891729,0.8316,2404.7,2404.5,0.83163]
[1751419891931,2.07849,2405.3,2404.7,0.83157]
[1751419891932,0.83155,2404.8,2404.7,0.83157]
[1751419892129,0.83155,2404.8,2404.7,0.83158]
[1751419892321,0.83155,2404.8,2404.6,0.83159]
[1751419892524,0.83155,2404.8,2404.6,2.60159]
[1751419893032,0.83158,2404.7,2404.6,2.60159]
[1751419893233,2.07849,2405.3,2404.6,1.77]
[1751419893426,0.83155,2404.8,2404.7,0.83157]
[1751419893833,0.83153,2404.9,2404.7,0.83156]
[1751419894131,0.83153,2404.9,2404.8,1.7644]
[1751419895223,0.83158,2404.7,2404.6,1.77]
[1751419895529,0.83156,2404.8,2404.6,2.60159]
[1751419895722,0.83152,2404.9,2404.7,3.26474978]
[1751419895928,0.83154,2404.8,2404.7,3.26474978]
[1751419896332,0.83153,2404.9,2404.7,3.26474978]
[1751419896532,0.83153,2404.9,2404.7,5.10324978]
[1751419896733,0.83154,2404.8,2404.7,5.10324978]
[1751419896935,0.83154,2404.8,2404.7,3.26474978]
[1751419897133,0.83154,2404.8,2404.7,5.10324978]
[1751419897728,0.83154,2404.8,2404.7,4.27169978]
[1751419898335,0.83154,2404.8,2404.7,1.8385]
[1751419898734,0.83158,2404.7,2404.6,2.6016]
[1751419899026,0.83158,2404.7,2404.6,4.3383]
[1751419900233,0.83158,2404.7,2404.6,5.00149978]
[1751419901632,0.83158,2404.7,2404.6,5.00148978]
[1751419901833,0.83158,2404.7,2404.6,12.69298608]
[1751419902133,0.83157,2404.8,2404.6,12.69298608]
[1751419902633,0.83158,2404.7,2404.6,11.86139608]
[1751419903037,0.83155,2404.8,2404.6,12.69298608]
[1751419903436,0.83153,2404.9,2404.7,0.83158]
[1751419903936,0.83153,2404.9,2404.8,2.43319978]
[1751419905238,0.83154,2404.8,2404.7,5.7817963]
[1751419906337,0.83154,2404.8,2404.7,6.6133763]
[1751419906637,0.83154,2404.8,2404.7,5.7817963]
[1751419908039,0.83154,2404.8,2404.7,6.6133763]
[1751419908338,0.83154,2404.8,2404.7,5.7817963]
[1751419909538,0.83154,2404.8,2404.7,8.21499608]
[1751419910441,0.83154,2404.8,2404.7,5.7817963]
[1751419911541,0.83158,2404.7,2404.6,7.5184963]
[1751419912435,0.83158,2404.7,2404.6,7.53496264]
[1751419912638,2.07869,2405.1,2404.6,6.62985264]
[1751419912941,0.83154,2404.8,2404.7,13.58626242]
[1751419913131,0.83154,2404.8,2404.7,5.79826264]
[1751419913337,3.26473978,2404.8,2404.7,5.79826264]
[1751419914240,0.83161,2404.6,2404.5,5.79826264]
[1751419914440,2.43319978,2404.8,2404.3,10.15902182]
[1751419914441,0.83168,2404.4,2404.3,15.95728446]
[1751419914641,0.83168,2404.4,2404.3,7.66376264]
[1751419914839,0.83168,2404.4,2404.3,1.8655]
[1751419915340,0.83168,2404.4,2404.1,0.83176]
[1751419915341,0.83182,2404.0,2403.9,8.29352182]
[1751419915545,3.26501978,2404.0,2403.9,7.43168182]
[1751419915842,23.83621956,2404.0,2403.9,3.62159182]
[1751419916143,23.83621956,2404.0,2403.9,1.82e-06]
[1751419916344,0.83196,2403.6,2403.5,10.80632955]
[1751419916641,3.26515978,2403.6,2403.5,16.60458498]
[1751419916943,0.8321,2403.2,2403.1,5.79825543]
[1751419917340,0.83213,2403.1,2403.0,5.79825543]
[1751419917738,0.83217,2403.0,2402.9,5.79825543]
[1751419918136,0.83217,2403.0,2402.7,3.5513]
[1751419918137,0.8322,2402.9,2402.8,5.79825543]
[1751419918335,2.6845,2402.9,2402.8,5.79825543]
[1751419918545,0.83224,2402.8,2402.7,7.57735543]
[1751419919044,0.83224,2402.8,2402.7,1.7791]
[1751419919944,1.8523,2402.9,2402.2,9.31465543]
[1751419920244,0.83233,2402.6,2402.3,0.83239]
[1751419920443,0.83234,2402.5,2402.3,1.7969]
[1751419920643,0.83229,2402.7,2402.4,0.83235]
[1751419921041,0.83231,2402.6,2402.3,2.95216999]
[1751419921237,0.83231,2402.6,2402.3,2.62929]
[1751419921848,0.83231,2402.6,2402.4,0.83236]
[1751419922049,0.83231,2402.6,2402.3,2.62929]
[1751419922242,0.83235,2402.5,2402.3,2.62929]
[1751419922442,0.83233,2402.6,2402.2,3.509]
[1751419922651,0.83233,2402.6,2402.4,0.83236]
[1751419923541,14.8744,2403.3,2402.7,0.83224]
[1751419923742,14.8744,2403.3,2402.6,5.51146628]
[1751419923947,0.83226,2402.8,2402.7,3.6123]
[1751419924950,0.83221,2402.9,2402.7,4.44455]
[1751419925253,0.83219,2403.0,2402.8,0.83223]
[1751419925446,0.83219,2403.0,2402.8,4.54723]
[1751419926453,0.8322,2402.9,2402.8,3.715]
[1751419928158,0.83215,2403.1,2402.9,0.83219]
[1751419928355,0.83215,2403.1,2402.9,2.69409]
[1751419928650,0.83217,2403.0,2402.9,1.8619]
[1751419928856,0.83216,2403.1,2402.9,4.5374]
[1751419930055,0.83217,2403.0,2402.9,4.5374]
[1751419930354,0.83217,2403.0,2402.9,1.8433]